fUSD/lending_fUSD_20240419
["ID","MTS","AMOUNT","RATE_DAILY","PERIOD"]
[322952511,1713539456898,-509.18,0.0001452,2]
[322952512,1713539456910,-1858.47,0.0001452,2]
[322952513,1713539456920,-500.0,0.0001452,2]
[322952514,1713539456930,-500.0,0.0001452,2]
[322952515,1713539456940,-1500.3,0.0001452,2]
[322952516,1713539456949,-500.0,0.0001452,2]
[322952517,1713539456959,-946.16,0.0001452,2]
[322952518,1713539456969,-500.0,0.0001452,2]
[322952519,1713539456978,-506.0,0.0001452,2]
[322952520,1713539456988,-880.87,0.0001452,2]
[322952521,1713539456998,-500.0,0.0001452,2]
[322952522,1713539457010,-500.0,0.0001452,2]
[322952523,1713539457019,-694.95,0.0001452,2]
[322952524,1713539457029,-1345.88,0.0001452,2]
[322952525,1713539457039,-558.34,0.0001452,2]
[322952526,1713539457048,-500.0,0.0001452,2]
[322952527,1713539457058,-589.27855934,0.0001452,2]
[322952528,1713539457068,-598.02,0.0001452,2]
[322952529,1713539457078,-976.37,0.0001452,2]
[322952530,1713539457088,-1434.88,0.0001452,2]
[322952531,1713539457098,-933.14,0.0001452,2]
[322952532,1713539457108,-500.0,0.0001452,2]
[322952533,1713539457117,-500.0,0.0001452,2]
[322952534,1713539457127,-500.0,0.0001452,2]
[322952535,1713539457137,-1154.64,0.0001452,2]
[322952536,1713539457147,-1100.69,0.0001452,2]
[322952537,1713539457156,-669.64,0.0001452,2]
[322952538,1713539457166,-500.0,0.0001452,2]
[322952539,1713539457176,-924.6,0.0001452,2]
[322952540,1713539457187,-1288.1,0.0001452,2]
[322952541,1713539457198,-1133.01,0.0001452,2]
[322952542,1713539457207,-1405.84,0.0001452,2]
[322952543,1713539457217,-425.66177434,0.0001452,2]
[322952544,1713539457227,-730.08,0.0001452,2]
[322952545,1713539457237,-500.0,0.0001452,2]
[322952546,1713539457248,-1976.48,0.0001452,2]
[322952547,1713539457259,-1492.45,0.0001452,2]
[322952548,1713539457268,-500.0,0.0001452,2]
[322952549,1713539457278,-500.0,0.0001452,2]
[322952550,1713539457287,-500.0,0.0001452,2]
[322952551,1713539457297,-208.48,0.0001452,2]
[322952552,1713539457306,-500.0,0.0001452,2]
[322952553,1713539457316,-1424.79,0.0001452,2]
[322952554,1713539457325,-2203.26,0.0001452,2]
[322952555,1713539457335,-500.0,0.0001452,2]
[322952556,1713539457345,-796.07,0.0001452,2]
[322952557,1713539457354,-707.17,0.0001452,2]
[322952558,1713539457364,-500.0,0.0001452,2]
[322952559,1713539457374,-500.0,0.0001452,2]
[322952560,1713539457383,-500.0,0.0001452,2]
[322952561,1713539457393,-700.01,0.0001452,2]
[322952562,1713539457402,-519.18,0.0001452,2]
[322952563,1713539457412,-500.0,0.0001452,2]
[322952564,1713539457421,-1134.86,0.0001452,2]
[322952565,1713539457430,-500.0,0.0001452,2]
[322952566,1713539457440,-3084.75,0.0001452,2]
[322952567,1713539457830,-500.0,0.0001452,2]
[322952568,1713539457855,-645.88899612,0.0001452,2]
[322952569,1713539457866,-500.0,0.0001452,2]
[322952570,1713539457875,-500.0,0.0001452,2]
[322952571,1713539457885,-500.0,0.0001452,2]
[322952572,1713539457895,-1259.4,0.0001452,2]
[322952573,1713539457905,-1069.93,0.0001452,2]
[322952574,1713539457915,-623.75,0.0001452,2]
[322952575,1713539457926,-500.0,0.0001452,2]
[322952576,1713539457936,-618.61,0.0001452,2]
[322952577,1713539457946,-521.89,0.0001452,2]
[322952578,1713539457956,-526.13199898,0.0001452,2]
[322952579,1713539457966,-538.44,0.0001452,2]
[322952580,1713539457976,-1966.54,0.0001452,2]
[322952581,1713539457987,-500.0,0.0001452,2]
[322952582,1713539457997,-1609.8,0.0001452,2]
[322952583,1713539458012,-7928.74,0.0001452,2]
[322952584,1713539458022,-1092.93,0.0001452,2]
[322952585,1713539458032,-868.83,0.0001452,2]
[322952586,1713539458042,-500.0,0.0001452,2]
[322952587,1713539458053,-1170.04,0.0001452,2]
[322952588,1713539458063,-571.39,0.0001452,2]
[322952589,1713539458073,-500.0,0.0001452,2]
[322952590,1713539458083,-9975.74,0.0001452,2]
[322952591,1713539458093,-500.0,0.0001452,2]
[322952592,1713539458103,-3408.42,0.0001452,2]
[322952593,1713539458113,-1020.07,0.0001452,2]
[322952594,1713539458123,-500.0,0.0001452,2]
[322952595,1713539458132,-514.62,0.0001452,2]
[322952596,1713539458142,-5435.63,0.0001452,2]
[322952597,1713539458152,-500.0,0.0001452,2]
[322952598,1713539458161,-500.0,0.0001452,2]
[322952599,1713539458171,-1686.88,0.0001452,2]
[322952600,1713539458180,-1369.06,0.0001452,2]
[322952601,1713539458190,-1051.05,0.0001452,2]
[322952602,1713539458200,-500.0,0.0001452,2]
[322952603,1713539458210,-500.0,0.0001452,2]
[322952604,1713539458219,-500.0,0.0001452,2]
[322952605,1713539458229,-1008.66,0.0001452,2]
[322952606,1713539458239,-37870.5,0.0001452,2]
[322952607,1713539458248,-2826.2,0.0001452,2]
[322952608,1713539458263,-500.0,0.0001452,2]
[322952609,1713539458273,-500.0,0.0001452,2]
[322952610,1713539458282,-3214.3,0.0001452,2]
[322952611,1713539458292,-500.0,0.0001452,2]
[322952612,1713539458301,-500.0,0.0001452,2]
[322952613,1713539458311,-68489.55,0.0001452,2]
[322952614,1713539458320,-2172.34,0.0001452,2]
[322952615,1713539458329,-500.0,0.0001452,2]
[322952616,1713539458339,-1536.9,0.0001452,2]
[322952617,1713539458349,-1016.99,0.0001452,2]
[322952618,1713539458358,-500.0,0.0001452,2]
[322952619,1713539458368,-917.0,0.0001452,2]
[322952620,1713539458378,-2334.44,0.0001452,2]
[322952621,1713539458387,-6013.93,0.0001452,2]
[322952622,1713539458398,-733.92,0.0001452,2]
[322952623,1713539458407,-500.0,0.0001452,2]
[322952624,1713539458416,-500.0,0.0001452,2]
[322952625,1713539458425,-4264.19,0.0001452,2]
[322952626,1713539458434,-500.0,0.0001452,2]
[322952627,1713539458444,-500.0,0.0001452,2]
[322952628,1713539458454,-414.93165662,0.0001452,2]
[322952629,1713539458463,-500.0,0.0001452,2]
[322952630,1713539458473,-1149.86,0.0001452,2]
[322952631,1713539458482,-1707.82,0.0001452,2]
[322952632,1713539458492,-4364.6,0.0001452,2]
[322952633,1713539458506,-500.0,0.0001452,2]
[322952634,1713539458516,-500.0,0.0001452,2]
[322952635,1713539458525,-500.0,0.0001452,2]
[322952636,1713539458535,-500.0,0.0001452,2]
[322952637,1713539458544,-500.0,0.0001452,2]
[322952638,1713539458554,-5253.04,0.0001452,2]
[322952639,1713539458564,-500.0,0.0001452,2]
[322952640,1713539458574,-1745.37,0.0001452,2]
[322952641,1713539458583,-8664.65,0.0001452,2]
[322952642,1713539458593,-1043.29,0.0001452,2]
[322952643,1713539458603,-500.0,0.0001452,2]
[322952644,1713539458612,-500.0,0.0001452,2]
[322952645,1713539458622,-1124.69,0.0001452,2]
[322952646,1713539458632,-5739.83,0.0001452,2]
[322952647,1713539458645,-500.0,0.0001452,2]
[322952648,1713539458654,-5182.2,0.0001452,2]
[322952649,1713539458664,-3129.88,0.0001452,2]
[322952650,1713539458674,-1339.57,0.0001452,2]
[322952651,1713539458683,-500.0,0.0001452,2]
[322952652,1713539458693,-2779.11,0.0001452,2]
[322952653,1713539458702,-4101.57,0.0001452,2]
[322952654,1713539458712,-712.3,0.0001452,2]
[322952655,1713539458721,-670.63,0.0001452,2]
[322952656,1713539458731,-500.0,0.0001452,2]
[322952657,1713539458740,-12222.67,0.0001452,2]
[322952658,1713539458753,-1744.08,0.0001452,2]
[322952659,1713539458763,-753.3,0.0001452,2]
[322952660,1713539458772,-500.0,0.0001452,2]
[322952661,1713539458782,-22102.7,0.0001452,2]
[322952662,1713539458791,-1539.39,0.0001452,2]
[322952663,1713539458801,-500.0,0.0001452,2]
[322952664,1713539458810,-725.11,0.0001452,2]
[322952665,1713539458820,-6928.39,0.0001452,2]
[322952666,1713539458831,-7024.24,0.0001452,2]
[322952667,1713539458841,-500.0,0.0001452,2]
[322952668,1713539458850,-963.83,0.0001452,2]
[322952669,1713539458859,-5132.16,0.0001452,2]
[322952670,1713539458869,-5019.52,0.0001452,2]
[322952671,1713539458882,-974.15,0.0001452,2]
[322952672,1713539458891,-406.26664967,0.0001452,2]
[322952673,1713539458901,-803.35,0.0001452,2]
[322952674,1713539458910,-213.7478572,0.0001452,2]
[322952675,1713539458919,-868.08,0.0001452,2]
[322952676,1713539458929,-642.23,0.0001452,2]
[322952677,1713539458938,-8319.09,0.0001452,2]
[322952678,1713539458947,-500.0,0.0001452,2]
[322952679,1713539458956,-1351.82,0.0001452,2]
[322952680,1713539458965,-500.0,0.0001452,2]
[322952681,1713539458973,-1743.3,0.0001452,2]
[322952682,1713539458982,-3333.48,0.0001452,2]
[322952683,1713539458991,-500.0,0.0001452,2]
[322952684,1713539459003,-7840.04,0.0001452,2]
[322952685,1713539459013,-667.69,0.0001452,2]
[322952686,1713539459023,-4630.5,0.0001452,2]
[322952687,1713539459032,-816.58,0.0001452,2]
[322952688,1713539459041,-12077.47,0.0001452,2]
[322952689,1713539459051,-500.0,0.0001452,2]
[322952690,1713539459061,-713.14,0.0001452,2]
[322952691,1713539459071,-3519.68,0.0001452,2]
[322952692,1713539459081,-500.0,0.0001452,2]
[322952693,1713539459090,-937.35,0.0001452,2]
[322952694,1713539459100,-5497.57,0.0001452,2]
[322952695,1713539459111,-500.0,0.0001452,2]
[322952696,1713539459122,-500.0,0.0001452,2]
[322952697,1713539459132,-2761.54,0.0001452,2]
[322952698,1713539459142,-500.0,0.0001452,2]
[322952699,1713539459152,-5590.25,0.0001452,2]
[322952700,1713539459163,-500.0,0.0001452,2]
[322952701,1713539459173,-500.0,0.0001452,2]
[322952702,1713539459182,-500.0,0.0001452,2]
[322952703,1713539459191,-1662.05,0.0001452,2]
[322952704,1713539459201,-6845.33,0.0001452,2]
[322952705,1713539459211,-2180.04,0.0001452,2]
[322952706,1713539459220,-2809.62,0.0001452,2]
[322952707,1713539459229,-9104.95,0.0001452,2]
[322952708,1713539459238,-2885.34,0.0001452,2]
[322952709,1713539459247,-1148.73,0.0001452,2]
[322952710,1713539459259,-5415.87,0.0001452,2]
[322952711,1713539459269,-658.68,0.0001452,2]
[322952712,1713539459279,-500.0,0.0001452,2]
[322952713,1713539459289,-61830.81,0.0001452,2]
[322952714,1713539459298,-500.0,0.0001452,2]
[322952715,1713539459307,-7183.93,0.0001452,2]
[322952716,1713539459316,-5504.36,0.0001452,2]
[322952717,1713539459326,-863.36,0.0001452,2]
[322952718,1713539459335,-3680.61,0.0001452,2]
[322952719,1713539459345,-500.0,0.0001452,2]
[322952720,1713539459354,-515.79,0.0001452,2]
[322952721,1713539459364,-6361.5,0.0001452,2]
[322952722,1713539459373,-3850.79,0.0001452,2]
[322952723,1713539459383,-500.0,0.0001452,2]
[322952724,1713539459392,-632.13733716,0.0001452,2]
[322952725,1713539459401,-2867.99,0.0001452,2]
[322952726,1713539459411,-1025.6,0.0001452,2]
[322952727,1713539459420,-667.33,0.0001452,2]
[322952728,1713539459429,-1372.05,0.0001452,2]
[322952729,1713539459439,-819.76,0.0001452,2]
[322952730,1713539459449,-2145.77,0.0001452,2]
[322952731,1713539459458,-1309.02,0.0001452,2]
[322952732,1713539459467,-4199.02,0.0001452,2]
[322952733,1713539459477,-2170.36,0.0001452,2]
[322952734,1713539459486,-2275.5,0.0001452,2]
[322952735,1713539459496,-6343.29,0.0001452,2]
[322952736,1713539459507,-672.04,0.0001452,2]
[322952737,1713539459517,-3246.23,0.0001452,2]
[322952738,1713539459526,-691.17,0.0001452,2]
[322952739,1713539459535,-1964.06,0.0001452,2]
[322952740,1713539459545,-500.0,0.0001452,2]
[322952741,1713539459554,-796.77,0.0001452,2]
[322952742,1713539459564,-4995.8,0.0001452,2]
[322952743,1713539459574,-4516.87,0.0001452,2]
[322952744,1713539459583,-1803.39,0.0001452,2]
[322952745,1713539459592,-500.0,0.0001452,2]
[322952746,1713539459602,-3606.67,0.0001452,2]
[322952747,1713539459611,-500.0,0.0001452,2]
[322952748,1713539459620,-500.0,0.0001452,2]
[322952749,1713539459630,-511.21,0.0001452,2]
[322952750,1713539459639,-838.83,0.0001452,2]
[322952751,1713539459648,-3171.71,0.0001452,2]
[322952752,1713539459659,-500.0,0.0001452,2]
[322952753,1713539459668,-9222.35,0.0001452,2]
[322952754,1713539459678,-3500.55,0.0001452,2]
[322952755,1713539459687,-2598.46,0.0001452,2]
[322952756,1713539459696,-1479.86,0.0001452,2]
[322952757,1713539459706,-1407.94,0.0001452,2]
[322952758,1713539459716,-500.0,0.0001452,2]
[322952759,1713539459725,-6160.11,0.0001452,2]
[322952760,1713539459734,-2428.89,0.0001452,2]
[322952761,1713539459744,-637.24,0.0001452,2]
[322952762,1713539459757,-500.0,0.0001452,2]
[322952763,1713539459766,-6036.67,0.0001452,2]
[322952764,1713539459776,-564.47213548,0.0001452,2]
[322952765,1713539459786,-6219.6,0.0001452,2]
[322952766,1713539459794,-500.0,0.0001452,2]
[322952767,1713539459803,-500.0,0.0001452,2]
[322952768,1713539459812,-500.0,0.0001452,2]
[322952769,1713539459823,-500.0,0.0001452,2]
[322952770,1713539459836,-500.0,0.0001452,2]
[322952771,1713539459845,-756.98,0.0001452,2]
[322952772,1713539459856,-1900.46,0.0001452,2]
[322952773,1713539459865,-4988.53,0.0001452,2]
[322952774,1713539459875,-692.6,0.0001452,2]
[322952775,1713539459884,-4617.52,0.0001452,2]
[322952776,1713539459894,-2469.31,0.0001452,2]
[322952777,1713539459903,-500.0,0.0001452,2]
[322952778,1713539459913,-1105.67,0.0001452,2]
[322952779,1713539459922,-640.07,0.0001452,2]
[322952780,1713539459932,-634.09,0.0001452,2]
[322952781,1713539459941,-2459.17,0.0001452,2]
[322952782,1713539459951,-4496.93,0.0001452,2]
[322952783,1713539459961,-500.0,0.0001452,2]
[322952784,1713539459970,-563.57380415,0.0001452,2]
[322952785,1713539459980,-2958.97,0.0001452,2]
[322952786,1713539459989,-11710.31,0.0001452,2]
[322952787,1713539460001,-10190.09,0.0001452,2]
[322952788,1713539460012,-2099.85,0.0001452,2]
[322952789,1713539460021,-500.0,0.0001452,2]
[322952790,1713539460030,-591.93,0.0001452,2]
[322952791,1713539460040,-1208.96,0.0001452,2]
[322952792,1713539460049,-4135.08,0.0001452,2]
[322952793,1713539460060,-10956.09,0.0001452,2]
[322952794,1713539460070,-649.49,0.0001452,2]
[322952795,1713539460080,-2967.19,0.0001452,2]
[322952796,1713539460090,-2464.06,0.0001452,2]
[322952797,1713539460099,-10715.63,0.0001452,2]
[322952798,1713539460109,-4223.22,0.0001452,2]
[322952799,1713539460119,-2030.89,0.0001452,2]
[322952800,1713539460128,-500.0,0.0001452,2]
[322952801,1713539460138,-500.0,0.0001452,2]
[322952802,1713539460149,-704.97,0.0001452,2]
[322952803,1713539460159,-9396.29,0.0001452,2]
[322952804,1713539460168,-500.0,0.0001452,2]
[322952805,1713539460179,-1256.51,0.0001452,2]
[322952806,1713539460188,-18212.06,0.0001452,2]
[322952807,1713539460198,-4255.21,0.0001452,2]
[322952808,1713539460211,-5332.77,0.0001452,2]
[322952809,1713539460220,-1905.71,0.0001452,2]
[322952810,1713539460230,-500.0,0.0001452,2]
[322952811,1713539460239,-1407.82,0.0001452,2]
[322952812,1713539460248,-500.0,0.0001452,2]
[322952813,1713539460259,-3206.61,0.0001452,2]
[322952814,1713539460269,-500.0,0.0001452,2]
[322952815,1713539460279,-2440.3,0.0001452,2]
[322952816,1713539460289,-934.89,0.0001452,2]
[322952817,1713539460298,-6273.24,0.0001452,2]
[322952818,1713539460307,-990.51,0.0001452,2]
[322952819,1713539460317,-3428.52,0.0001452,2]
[322952820,1713539460326,-5267.06,0.0001452,2]
[322952821,1713539460335,-808.04,0.0001452,2]
[322952822,1713539460345,-3486.88,0.0001452,2]
[322952823,1713539460354,-682.4,0.0001452,2]
[322952824,1713539460364,-500.0,0.0001452,2]
[322952825,1713539460373,-2018.61,0.0001452,2]
[322952826,1713539460382,-497.1647592,0.0001452,2]
[322952827,1713539460392,-9066.2,0.0001452,2]
[322952828,1713539460401,-514.45,0.0001452,2]
[322952829,1713539460410,-500.0,0.0001452,2]
[322952830,1713539460420,-251.819183,0.00014521,2]
[322952831,1713539460429,-787.9320887,0.00014537,2]
[322952832,1713539460438,-755.88863997,0.00014578,2]
[322952833,1713539460447,-350.0,0.00014597,2]
[322952834,1713539460459,-255.80174823,0.00014638,2]
[322952835,1713539460468,-732.22575,0.0001464,2]
[322952836,1713539460477,-5680.69,0.00014678,2]
[322952837,1713539460487,-1657.46,0.00014678,2]
[322952838,1713539460496,-13774.05,0.00014678,2]
[322952839,1713539460510,-52359.99,0.00014678,2]
[322952840,1713539460519,-14205.53,0.00014678,2]
[322952841,1713539460528,-4374.83,0.00014678,2]
[322952842,1713539460538,-6042.3,0.00014678,2]
[322952843,1713539460547,-14484.23,0.00014678,2]
[322952844,1713539460557,-3560.16,0.00014678,2]
[322952845,1713539460566,-5052.64,0.00014678,2]
[322952846,1713539460575,-5514.67,0.00014678,2]
[322952847,1713539460585,-162310.9563,0.00014688,2]
[322952848,1713539460594,-8457.7746,0.00014688,2]
[322952849,1713539460604,-1000.0,0.00014688,2]
[322952850,1713539460613,-61262.4856,0.00014688,2]
[322952851,1713539460622,-755.88863987,0.00014737,2]
[322952852,1713539460631,-787.9320887,0.00014772,2]
[322952853,1713539460640,-199.88575729,0.00014773,2]
[322952854,1713539460650,-1609.90601748,0.00014773,2]
[322952855,1713539460659,-218.05077947,0.00014786,2]
[322952856,1713539460669,-3079.50911342,0.00014786,2]
[322952857,1713539460678,-3756.48115014,0.00014786,2]
[322952858,1713539460688,-267.23064809,0.00014786,2]
[322952859,1713539460697,-156.60467947,0.00014786,2]
[322952860,1713539460706,-174.24383052,0.00014786,2]
[322952861,1713539460715,-287.99181561,0.00014786,2]
[322952862,1713539460725,-316.15089288,0.00014786,2]
[322952863,1713539460734,-155.42199688,0.00014786,2]
[322952864,1713539460742,-155.0,0.00014786,2]
[322952865,1713539460753,-325.37506637,0.00014786,2]
[322952866,1713539460762,-220.91890026,0.00014786,2]
[322952867,1713539460771,-195.97917074,0.00014786,2]
[322952868,1713539460781,-303.53418169,0.00014786,2]
[322952869,1713539460789,-224.76439863,0.00014786,2]
[322952870,1713539460799,-269.89132436,0.00014786,2]
[322952871,1713539460808,-155.93520266,0.00014786,2]
[322952872,1713539460817,-178.82881797,0.00014786,2]
[322952873,1713539460829,-155.1119593,0.00014786,2]
[322952874,1713539460841,-212.02659874,0.00014786,2]
[322952875,1713539460850,-166.27150602,0.00014786,2]
[322952876,1713539460859,-155.79898448,0.00014786,2]
[322952877,1713539460868,-296.52526315,0.00014786,2]
[322952878,1713539460878,-155.0,0.00014786,2]
[322952879,1713539460887,-245.56779934,0.00014786,2]
[322952880,1713539460896,-1662.12501448,0.00014786,2]
[322952881,1713539460905,-500.0,0.00014786,2]
[322952882,1713539460914,-1228.43,0.00014786,2]
[322952883,1713539460925,-1610.77,0.00014786,2]
[322952884,1713539460937,-2086.42,0.00014786,2]
[322952885,1713539460951,-1368.38,0.00014786,2]
[322952886,1713539460961,-1395.54,0.00014786,2]
[322952887,1713539460971,-1011.34,0.00014786,2]
[322952888,1713539460983,-500.0,0.00014786,2]
[322952889,1713539460993,-1200.54,0.00014786,2]
[322952890,1713539461004,-1993.96,0.00014786,2]
[322952891,1713539461014,-1813.61,0.00014786,2]
[322952892,1713539461023,-997.81,0.00014786,2]
[322952893,1713539461033,-1558.55,0.00014786,2]
[322952894,1713539461043,-1607.66,0.00014786,2]
[322952895,1713539461052,-1835.54,0.00014786,2]
[322952896,1713539461062,-2500.25,0.00014786,2]
[322952897,1713539461071,-793.95,0.00014786,2]
[322952898,1713539461080,-2491.67,0.00014786,2]
[322952899,1713539461089,-500.0,0.00014786,2]
[322952900,1713539461098,-500.0,0.00014786,2]
[322952901,1713539461107,-500.0,0.00014786,2]
[322952902,1713539461116,-500.0,0.00014786,2]
[322952903,1713539461125,-500.0,0.00014786,2]
[322952904,1713539461135,-1630.54,0.00014786,2]
[322952905,1713539461144,-800.16,0.00014786,2]
[322952906,1713539461153,-500.0,0.00014786,2]
[322952907,1713539461162,-5101.51,0.00014786,2]
[322952908,1713539461172,-525.65095264,0.00014786,2]
[322952909,1713539461181,-4995.32,0.00014786,2]
[322952910,1713539461191,-3072.43,0.00014786,2]
[322952911,1713539461200,-500.0,0.00014786,2]
[322952912,1713539461209,-2884.41,0.00014786,2]
[322952913,1713539461218,-2682.48,0.00014786,2]
[322952914,1713539461227,-832.28,0.00014786,2]
[322952915,1713539461236,-1961.67,0.00014786,2]
[322952916,1713539461245,-1711.04350119,0.00014787,2]
[322952917,1713539461257,-2183.5,0.00014787,2]
[322952918,1713539461266,-3094.38,0.00014787,2]
[322952919,1713539461275,-1800.07,0.00014787,2]
[322952920,1713539461284,-1629.06,0.00014787,2]
[322952921,1713539461293,-2249.68,0.00014787,2]
[322952922,1713539461302,-1556.5,0.00014787,2]
[322952923,1713539461310,-1520.16,0.00014787,2]
[322952924,1713539461320,-2006.67,0.00014787,2]
[322952925,1713539461329,-1055.96,0.00014787,2]
[322952926,1713539461338,-770.24,0.00014787,2]
[322952927,1713539461348,-500.0,0.00014787,2]
[322952928,1713539461357,-500.0,0.00014787,2]
[322952929,1713539461366,-1493.33,0.00014787,2]
[322952930,1713539461376,-1844.11,0.00014787,2]
[322952931,1713539461385,-697.15,0.00014787,2]
[322952932,1713539461394,-987.79,0.00014787,2]
[322952933,1713539461403,-500.0,0.00014787,2]
[322952934,1713539461413,-832.74,0.00014787,2]
[322952935,1713539461422,-500.0,0.00014787,2]
[322952936,1713539461431,-842.75,0.00014787,2]
[322952937,1713539461440,-500.0,0.00014787,2]
[322952938,1713539461449,-642.97,0.00014787,2]
[322952939,1713539461459,-500.0,0.00014787,2]
[322952940,1713539461468,-2857.86,0.00014787,2]
[322952941,1713539461478,-657.11,0.00014787,2]
[322952942,1713539461487,-2764.03,0.00014787,2]
[322952943,1713539461496,-500.0,0.00014787,2]
[322952944,1713539461511,-3390.69,0.00014787,2]
[322952945,1713539461520,-2260.28,0.00014787,2]
[322952946,1713539461529,-1660.79,0.00014787,2]
[322952947,1713539461539,-4070.73,0.00014787,2]
[322952948,1713539461548,-2454.82,0.00014787,2]
[322952949,1713539461557,-3277.82,0.00014787,2]
[322952950,1713539461566,-1178.43,0.00014787,2]
[322952951,1713539461576,-3143.42,0.00014787,2]
[322952952,1713539461586,-1972.91,0.00014787,2]
[322952953,1713539461595,-2209.54,0.00014787,2]
[322952954,1713539461605,-3597.38,0.00014787,2]
[322952955,1713539461614,-737.66,0.00014787,2]
[322952956,1713539461624,-3061.49,0.00014787,2]
[322952957,1713539461633,-2212.41,0.00014787,2]
[322952958,1713539461642,-2043.62,0.00014787,2]
[322952959,1713539461651,-500.0,0.00014787,2]
[322952960,1713539461660,-2681.92,0.00014787,2]
[322952961,1713539461669,-4190.02,0.00014787,2]
[322952962,1713539461678,-500.0,0.00014787,2]
[322952963,1713539461688,-500.0,0.00014787,2]
[322952964,1713539461697,-1543.93,0.00014787,2]
[322952965,1713539461706,-1900.62,0.00014787,2]
[322952966,1713539461715,-385.82293825,0.00014788,2]
[322952967,1713539461724,-348648.79241148,0.00014788,2]
[322952968,1713539461733,-246.29956427,0.00014788,2]
[322952969,1713539461742,-155.59422064,0.00014788,2]
[322952970,1713539461754,-423.8176794,0.00014788,2]
[322952971,1713539461763,-166.3767378,0.00014788,2]
[322952972,1713539461773,-350.77166126,0.00014788,2]
[322952973,1713539461782,-162.68520801,0.00014788,2]
[322952974,1713539461792,-157.67714452,0.00014788,2]
[322952975,1713539461801,-408.75244651,0.00014788,2]
[322952976,1713539461810,-267.70067574,0.00014788,2]
[322952977,1713539461821,-247.75772317,0.00014788,2]
[322952978,1713539461832,-156.54926168,0.00014788,2]
[322952979,1713539461841,-207.88378701,0.00014788,2]
[322952980,1713539461850,-309.59058991,0.00014788,2]
[322952981,1713539461859,-1791.0,0.00014788,2]
[322952982,1713539461868,-500.0,0.00014788,2]
[322952983,1713539461878,-500.0,0.00014788,2]
[322952984,1713539461887,-500.0,0.00014788,2]
[322952985,1713539461896,-500.0,0.00014788,2]
[322952986,1713539461908,-500.0,0.00014788,2]
[322952987,1713539461920,-500.0,0.00014788,2]
[322952988,1713539461929,-1125.77,0.00014788,2]
[322952989,1713539461939,-500.0,0.00014788,2]
[322952990,1713539461949,-500.0,0.00014788,2]
[322952991,1713539461959,-592.68,0.00014788,2]
[322952992,1713539461968,-500.0,0.00014788,2]
[322952993,1713539461978,-500.0,0.00014788,2]
[322952994,1713539461987,-1768.04,0.00014788,2]
[322952995,1713539461999,-500.0,0.00014788,2]
[322952996,1713539462011,-500.0,0.00014788,2]
[322952997,1713539462020,-500.0,0.00014788,2]
[322952998,1713539462029,-507.87,0.00014788,2]
[322952999,1713539462039,-500.0,0.00014788,2]
[322953000,1713539462048,-1000.6,0.00014788,2]
[322953001,1713539462057,-753.76,0.00014788,2]
[322953002,1713539462066,-500.0,0.00014788,2]
[322953003,1713539462075,-1182.95,0.00014788,2]
[322953004,1713539462085,-1279.63,0.00014788,2]
[322953005,1713539462094,-967.13,0.00014788,2]
[322953006,1713539462102,-1401.39,0.00014788,2]
[322953007,1713539462111,-500.0,0.00014788,2]
[322953008,1713539462120,-647.69,0.00014788,2]
[322953009,1713539462129,-730.63,0.00014788,2]
[322953010,1713539462138,-995.79,0.00014788,2]